Cogmind - Beta 10.2 @@@ ROGUE MODE // 2021.05.30 @ 20:09:57 Player: Mares Result: Destroyed by as-02384 with Assembled Focal Cannon Performance ------------- Evolutions (4) 2000 Regions Visited (22) 4400 Robots Destroyed (271) 1355 Value Destroyed (8823) 8823 Prototype IDs (20) 400 Alien Tech Used (0) 0 Bonus (3628) 3628 TOTAL SCORE: 20606 Bonus ------- High Alert Combat Kills 350 Follower Combat Kills 572 Entered Garrisons 600 Used RIF Installer 1500 Met Data Miner 300 Exposed GOLEM Chamber 500 Friendly Fire -194 Cogmind --------- Core Integrity 0/850 Matter 180/300 Energy 73/100 System Corruption 2% Temperature Cool (6) Movement Treading (190) Ox1 Location -6/Deep Caves Parts ------- > --- POWER (1) -------- (None) > --- PROPULSION (4) --- Armored Treads > --- UTILITY (6) ------ High-capacity Storage Unit Advanced Signal Interpreter > --- WEAPON (4) ------- Coil Gun > --- INVENTORY (12) --- Fission Core Antimatter Reactor Improved Cooling System Humpback Relay Coupler [Programmer] (80) Relay Coupler [Programmer] (90) Heart of Steel Hypervelocity Mass Driver Peak State ------------ > --- POWER ------------ F-cell Engine > --- PROPULSION ------- Spiked Medium Treads Heavy Treads Biometal Medium Treads > --- UTILITY ---------- Improved Cooling System High-capacity Storage Unit Advanced Signal Interpreter Heart of Steel > --- WEAPON ----------- Compact Ion Cannon Heavy Battle Rifle Coil Gun Coil Gun > --- INVENTORY -------- Fission Core Antimatter Reactor Armored Treads Armored Treads Spiked Medium Treads Long-range Sensor Array Hypervelocity Railgun Hypervelocity Mass Driver Remote Datajack [Rating: 87] Favorites ----------- Power Reinforced Deuterium Engine Engine Reinforced Deuterium Engine Power Core Neutrino Core Propulsion Carbon-fiber Leg Treads Light Treads Leg Carbon-fiber Leg Wheel Wheel Hover Unit Aerolev Unit Utility Advanced Signal Interpreter Device Long-range Sensor Array Storage Humpback Processor Advanced Signal Interpreter Hackware Relay Coupler [NC] Protection Improved Medium Armor Plating Weapon Coil Gun Energy Gun Small Laser Energy Cannon Compact Ion Cannon Ballistic Gun Coil Gun Ballistic Cannon Assault Cannon Launcher Rocket Launcher Special Weapon Remote Datajack Impact Weapon Great Maul Slashing Weapon Chainsword Special Melee Weapon Improved Datajack Build | -11 -10 -10 -10 -9 -8 -8 -8 -8 -7 -7 -7 -7 -7 -7 -6 -6 -6 -6 -6 -6 -6 -6 ------- Run | Scr Mat Min Exi Min Mat Gar Mat Gar Fac Gar Fac Low Low Dat Pro Fac Was Fac Low Low Zio Dee Slots Evolved 8 | . . . . . 4 . . . 2 . . . . . . 2 . . . . . . Power . | . . . . . . . . . . . . . . . . . . . . . . . Propulsion 2 | . . . . . 2 . . . . . . . . . . . . . . . . . Utility 4 | . . . . . 2 . . . . . . . . . . 2 . . . . . . Weapon 2 | . . . . . . . . . 2 . . . . . . . . . . . . . Parts Attached 271 | 6 8 . . 3 14 3 6 6 13 20 42 12 13 . 11 53 7 . . 6 29 19 Power 12 | 1 . . . 1 . . 2 . 1 . 2 1 1 . 1 1 . . . . 1 . Engine 10 | 1 . . . 1 . . 1 . 1 . 2 1 1 . . 1 . . . . 1 . Core 2 | . . . . . . . 1 . . . . . . . 1 . . . . . . . Reactor . | . . . . . . . . . . . . . . . . . . . . . . . Propulsion 55 | 2 2 . . . 7 . 1 2 1 3 11 4 2 . 1 11 1 . . 1 . 6 Treads 32 | . 2 . . . 5 . 1 1 1 3 . 1 1 . . 9 1 . . 1 . 6 Leg 19 | . . . . . . . . 1 . . 11 3 1 . 1 2 . . . . . . Wheel 2 | 2 . . . . . . . . . . . . . . . . . . . . . . Hover 2 | . . . . . 2 . . . . . . . . . . . . . . . . . Flight . | . . . . . . . . . . . . . . . . . . . . . . . Utility 113 | 1 5 . . . 5 1 2 2 5 5 11 3 6 . 5 24 3 . . 3 21 11 Device 53 | . 1 . . . 1 . 1 1 1 . 5 1 2 . 3 10 2 . . 2 16 7 Storage 14 | 1 3 . . . 1 . . . . 1 . . 2 . . 2 . . . . 2 2 Processor 4 | . . . . . . . . . . . 2 . . . 1 1 . . . . . . Hackware 5 | . . . . . . . . . 1 . 2 . . . . 1 1 . . . . . Protection 37 | . 1 . . . 3 1 1 1 3 4 2 2 2 . 1 10 . . . 1 3 2 Artifact . | . . . . . . . . . . . . . . . . . . . . . . . Weapon 91 | 2 1 . . 2 2 2 1 2 6 12 18 4 4 . 4 17 3 . . 2 7 2 Energy Gun 9 | . 1 . . . . . . . . . 3 . 2 . 1 . . . . . 2 . Energy Cannon 16 | . . . . . . 1 1 . 1 2 1 1 . . 1 6 . . . . 2 . Ballistic Gun 35 | 2 . . . 2 2 1 . 1 2 5 7 . . . . 5 1 . . 2 3 2 Ballistic Cannon 5 | . . . . . . . . . . . 1 1 1 . 1 1 . . . . . . Launcher 7 | . . . . . . . . 1 1 2 . . . . 1 2 . . . . . . Special Weapon 15 | . . . . . . . . . 1 2 4 2 1 . . 3 2 . . . . . Impact Weapon 2 | . . . . . . . . . . 1 1 . . . . . . . . . . . Slashing Weapon 1 | . . . . . . . . . . . 1 . . . . . . . . . . . Piercing Weapon . | . . . . . . . . . . . . . . . . . . . . . . . Special Melee Weapon 1 | . . . . . . . . . 1 . . . . . . . . . . . . . Unidentified Prototypes 8 | . . . . . 1 . 1 . 1 . 2 . . . . 1 . . . . 1 1 Parts Lost 79 | . 3 . . . . 1 4 2 2 12 15 1 15 . . 4 . . . . 5 15 Power 3 | . . . . . . . 1 . . . 1 . . . . . . . . . . 1 Propulsion 25 | . 2 . . . . . 1 2 . 2 8 1 2 . . 1 . . . . . 6 Utility 23 | . . . . . . . 1 . 2 3 1 . 10 . . 1 . . . . 1 4 Weapon 28 | . 1 . . . . 1 1 . . 7 5 . 3 . . 2 . . . . 4 4 Highest Loss Streak 14 | . 2 . . . . 1 3 2 2 3 6 1 14 . . 1 . . . . 3 10 Average Slot Usage (%) 87 | . 97 100 100 100 86 90 89 89 90 79 87 91 92 100 100 96 91 86 86 80 80 71 Engine 7 | . 14 14 14 14 9 9 4 9 7 7 7 7 7 7 5 3 6 6 6 6 6 5 Treads 18 | . 6 28 28 28 35 36 35 30 23 26 1 2 . . . 22 24 20 20 19 20 19 Leg 7 | . . . . . . . . 5 7 1 26 27 29 30 30 3 . . . . . . Device 5 | . . . . . 7 6 5 6 4 . 5 4 3 . 3 6 6 6 6 10 9 6 Storage 10 | . 19 28 28 28 9 9 9 9 7 7 7 7 7 15 15 12 6 6 6 6 6 7 Processor 4 | . . . . . . . . . . . 4 7 7 7 7 6 6 6 6 6 6 6 Hackware 2 | . . . . . . . . . 5 3 3 . . . . 5 13 13 13 2 . . Protection 3 | . 7 . . . 7 11 12 12 4 3 . 2 3 7 3 4 . . . . 3 2 Energy Gun 2 | . 3 14 14 5 . . . . . . 3 . 12 15 15 . . . . . . . Energy Cannon 5 | . . . . . . . 6 7 2 5 1 4 . . . 9 20 20 20 10 8 5 Ballistic Gun 12 | . 24 14 14 22 18 17 11 10 22 12 11 15 15 15 10 10 . . . 8 15 13 Special Weapon 1 | . . . . . . . . . . 1 3 3 1 . . . 6 6 6 6 1 . Naked Turns . | . . . . . . . . . . . . . . . . . . . . . . . Heaviest Build 185 | 13 73 72 72 72 95 99 107 109 113 185 112 128 130 77 84 123 120 120 120 132 152 144 Greatest Support 135 | 20 40 40 40 40 112 112 112 104 68 88 88 60 60 55 62 128 135 135 135 135 125 133 Greatest Overweight (x) 32 | 1 7 1 1 1 1 . 1 1 1 2 32 3 2 1 1 6 1 . . 1 1 10 Average Overweight (x) . | . 1 1 1 1 . . . 1 1 1 1 1 . 1 . . . . . . . . Largest Inventory Capacity 44 | 6 20 20 20 20 40 24 24 24 24 44 24 24 24 16 16 36 24 24 24 24 32 32 Average Capacity 20 | 5 13 20 20 20 23 24 24 24 24 24 24 24 19 16 16 16 24 24 24 24 17 16 Most Carried 24 | 6 12 14 18 20 24 24 24 24 24 24 24 24 24 16 16 19 24 24 24 24 24 24 Average Carried 19 | 2 8 13 16 18 23 23 22 23 23 21 23 23 18 16 15 16 23 23 23 23 17 13 Final Capacity 24 | 6 20 20 20 20 24 24 24 24 24 24 24 24 16 16 16 24 24 24 24 24 24 12 Final Carried 24 | 6 12 14 18 20 24 23 24 24 24 21 24 24 16 16 16 19 24 24 24 24 23 11 Class Distribution -------------------- 34% | Hauler-Mutant 21% | Scavenger-Mutant 17% | Scavenger-Skirmisher 7% | Scavenger-Tank 6% | Bothacker-Mutant 3% | Hauler-Skirmisher Dominant Class ---------------- Mutant | -10/Materials Hauler-Mutant | -10/Mines Hauler-Mutant | -10/Exiles Hauler-Mutant | -9/Mines Hauler-Mutant | -8/Materials Hauler-Mutant | -8/Garrison Hauler-Mutant | -8/Materials Hauler-Mutant | -8/Garrison Hauler-Mutant | -7/Factory Bothacker-Mutant | -7/Garrison Bothacker-Mutant | -7/Factory Scavenger-Mutant | -7/Lower Caves Scavenger-Tank | -7/Lower Caves Scavenger-Tank | -7/Data Miner Scavenger-Tank | -6/Proximity Caves Scavenger-Skirmisher | -6/Factory Hauler-Mutant | -6/Waste Hauler-Mutant | -6/Factory Hauler-Mutant | -6/Lower Caves Scavenger-Skirmisher | -6/Lower Caves Scavenger-Skirmisher | -6/Zion Scavenger-Mutant | -6/Deep Caves Resources | -11 -10 -10 -10 -9 -8 -8 -8 -8 -7 -7 -7 -7 -7 -7 -6 -6 -6 -6 -6 -6 -6 -6 ----------- Run | Scr Mat Min Exi Min Mat Gar Mat Gar Fac Gar Fac Low Low Dat Pro Fac Was Fac Low Low Zio Dee Matter Collected 8596 | 243 250 44 . 161 486 222 215 85 443 555 1300 288 745 . 193 1124 177 . 48 140 1420 457 Remotely . | . . . . . . . . . . . . . . . . . . . . . . . Salvage Created 12236 | . 354 42 . 133 788 472 441 175 488 964 1458 296 921 . 12 1966 350 33 60 313 2297 673 Parts 621 | . 22 3 . 6 40 25 30 12 32 44 81 8 31 . 1 85 1 5 1 8 171 15 Haulers Intercepted 6 | . 1 . . . 2 . 1 . . . . . . . . 2 . . . . . . Recyclers Shooed 14 | . 1 . . . 2 . . . . . 6 . . . . 5 . . . . . . Parts Field Recycled . | . . . . . . . . . . . . . . . . . . . . . . . Retrieved Matter . | . . . . . . . . . . . . . . . . . . . . . . . Parts Self-Destructed 71 | . . . . . . . . . . . . 19 39 . 8 . . . 2 3 . . Prevented 8 | . . . . . . . . . . . . 2 1 . . . . . . 5 . . Kills | -11 -10 -10 -10 -9 -8 -8 -8 -8 -7 -7 -7 -7 -7 -7 -6 -6 -6 -6 -6 -6 -6 -6 ------- Run | Scr Mat Min Exi Min Mat Gar Mat Gar Fac Gar Fac Low Low Dat Pro Fac Was Fac Low Low Zio Dee Combat Hostiles Destroyed 161 | . 8 3 . 5 11 9 8 6 11 28 16 3 14 . 2 20 . . . 3 9 5 Melee 1 | . . . . . . . . . . . . . . . . 1 . . . . . . Guns 108 | . 7 3 . 5 11 8 5 3 7 9 15 2 11 . 1 10 . . . 1 8 2 Cannons 31 | . . . . . . 1 3 1 2 6 1 1 2 . . 8 . . . 2 1 3 AOE 21 | . 1 . . . . . . 2 2 13 . . 1 . 1 1 . . . . . . Classes Destroyed 21 | . 4 . . 1 4 . . . 3 . 2 1 1 . . . . . . . 3 2 Worker 5 | . . . . . . . . . 2 . 2 . . . . 1 . . . . . . Builder 2 | . . . . . . . . . . . 1 . . . . 1 . . . . . . Tunneler 1 | . . . . . . . . . . . 1 . . . . . . . . . . . Hauler 6 | . 1 . . . 2 . 1 . . . . . . . . 2 . . . . . . Recycler 15 | . 1 . . . 1 . . . . . 7 . . . . 6 . . . . . . Operator 1 | . . . . . 1 . . . . . . . . . . . . . . . . . Watcher 10 | . . . . . 1 . 1 . . . 4 . . . . 3 . 1 . . . . Swarmer 32 | . 3 3 . 2 . . 2 3 4 9 . . 1 . 2 3 . . . . . . Grunt 72 | . 5 . . 2 8 8 4 2 3 15 8 . 9 . . 6 . . . 2 . . Brawler 5 | . . . . . . . . . 1 2 . . 1 . . 1 . . . . . . Duelist 9 | . . . . 1 . . . . 1 1 1 2 2 . . . . . . 1 . . Sentry 11 | . . . . . 2 . 2 . . 1 2 . . . . 4 . . . . . . Hunter 6 | . . . . . 1 1 . 1 . . 1 . . . . 2 . . . . . . Programmer 11 | . . . . . . . . . 2 . 4 . 1 . . 4 . . . . . . Zionite 73 | . . . . . . . . . . . . . . . . . . . . . 73 . Z-Technician 5 | . . . . . . . . . . . . . . . . . . . . . . 5 Packrat 1 | . . . . . . . . . . . . . 1 . . . . . . . . . Samaritan 3 | . . . . . . . . . . . . . 2 . . . . . 1 . . . Tinkerer 4 | . . . . . . . . . . . . . . . . . . . . . 4 . Assembled 3 | . . . . . . . . . . . . . . . . . . . . . . 3 Golem 2 | . . . . . . . . . . . . . . . . . . . . . . 2 Thug 1 | . . . . . . . . . . . . 1 . . . . . . . . . . Butcher 1 | . . . . . . . . . . . . . . . . . . . . . 1 . Marauder 2 | . . . . . . . . . . . . . . . . . . . . . 2 . Mutant 6 | . . . . . . . . . . . . 1 . . . . . . . . 5 . Best Kill Streak 9 | . 3 3 . 3 9 4 3 3 5 4 5 2 3 . 1 5 . 1 . 3 6 3 Combat Bots Only 6 | . 3 3 . 3 6 4 3 3 4 4 4 2 3 . 1 3 . . . 3 1 3 Max Kills in Single Turn 3 | . 2 1 . 2 1 1 1 2 3 2 2 1 1 . 1 2 . 1 1 1 2 1 Gunslinging 1 | . . . . 1 . . . . . . . . . . . . . . . . . . Exploded 2 | . 1 . . . . . . 1 2 2 . . 1 . 1 1 . . . . . . Melee 1 | . . . . . . . . . . . . . . . . 1 . . . . . . Uniques/NPCs Destroyed 1 | . . . . . . . . . . . . . . . . . . . . . 1 . Imprinter (-6/Zion) Combat | -11 -10 -10 -10 -9 -8 -8 -8 -8 -7 -7 -7 -7 -7 -7 -6 -6 -6 -6 -6 -6 -6 -6 -------- Run | Scr Mat Min Exi Min Mat Gar Mat Gar Fac Gar Fac Low Low Dat Pro Fac Was Fac Low Low Zio Dee Damage Taken 15580 | . 331 55 . 78 319 612 354 599 643 1395 2139 80 568 . 152 2356 . . . 698 2101 3100 Core 1618 | . 51 . . 16 . 29 17 41 18 84 298 . 162 . 34 307 . . . 19 177 365 Absorbed by Shields . | . . . . . . . . . . . . . . . . . . . . . . . Reduced by Siege Mode 131 | . . . . . . . . . . . . . . . . . . . . . 45 86 Core Remaining (%) 67 | 100 . . . 73 . . . 84 . . . . . . 14 . . . . . . . Volleys Fired 881 | 1 29 6 . 10 35 21 22 15 20 43 101 18 54 . 3 104 4 10 37 12 201 135 Largest 4 | 2 2 2 . 2 2 2 2 2 4 3 4 4 4 . 2 4 1 3 3 3 4 4 Hottest 279 | 40 60 60 . 60 56 91 91 91 147 154 146 163 190 . 149 279 69 249 249 129 243 193 Shots Fired 1844 | 2 58 9 . 20 70 42 44 28 69 96 245 32 141 . 5 271 4 12 41 32 466 157 Gun 1156 | 2 58 9 . 20 70 39 35 15 49 56 197 8 111 . 3 137 . . . 20 300 27 Cannon 625 | . . . . . . 3 9 11 17 27 32 13 18 . . 131 4 12 41 12 165 130 Launcher 19 | . . . . . . . . 2 1 13 . . . . 2 1 . . . . . . Special 44 | . . . . . . . . . 2 . 16 11 12 . . 2 . . . . 1 . Kinetic 1073 | 2 57 6 . 16 70 39 35 15 49 56 164 15 68 . . 140 . . . 20 294 27 Thermal 535 | . 1 3 . 4 . . . . . . 59 . 48 . 3 120 . 11 39 . 117 130 Explosive 19 | . . . . . . . . 2 1 13 . . . . 2 1 . . . . . . Electromagnetic 173 | . . . . . . 3 9 11 17 27 6 6 13 . . 8 4 1 2 12 54 . Robot Hit Streak 40 | 1 9 2 . 5 19 24 10 11 7 16 12 10 8 . . 21 7 8 13 15 36 40 Robot Miss Streak 13 | 1 5 2 . 4 11 4 4 7 6 11 13 8 6 . 2 6 . . . 2 3 5 Penetration Max 2 | . . . . . . . . . 1 . . . . . . 2 . . . . 1 1 Secondary Targets 13 | . 2 . . 2 2 1 . . . 2 2 . 2 . . . . . . . . . Max Gunslinging Chain 1 | . 1 . . 1 1 1 . . . 1 1 . 1 . . . . . . . . . Shots Hit Robots 1272 | 1 30 3 . 13 65 40 38 21 53 64 179 29 100 . . 161 4 1 5 20 332 113 Core Hits 677 | . 17 3 . 6 75 48 26 13 32 68 90 17 62 . 3 68 1 1 2 7 108 30 Critical Hits 29 | . . . . . . . . 1 . . 1 . . . . 7 . . . . 15 5 Critical Kills 7 | . . . . . . . . . . . . . . . . 2 . . . . 3 2 Critical Parts Destroyed 20 | . . . . . . . . 1 . . 1 . . . . 5 . . . . 10 3 Melee Attacks 17 | . . . . . . . . . 2 1 10 4 . . . . . . . . . . Impact 1 | . . . . . . . . . . 1 . . . . . . . . . . . . Slashing 14 | . . . . . . . . . . . 10 4 . . . . . . . . . . Piercing . | . . . . . . . . . . . . . . . . . . . . . . . Sneak Attacks 5 | . . . . . . . . . 2 . 3 . . . . . . . . . . . Combat Hostiles . | . . . . . . . . . . . . . . . . . . . . . . . Follow-up Attacks . | . . . . . . . . . . . . . . . . . . . . . . . Damage Inflicted 29281 | 10 460 46 . 160 1269 891 655 584 1043 2537 3431 544 1552 . 228 4830 97 46 153 466 7431 2848 Guns 15076 | 10 355 46 . 160 1269 841 439 135 675 673 2439 110 1237 . 20 2074 . . . 219 4115 259 Cannons 10264 | . . . . . . 50 216 239 134 475 324 198 204 . . 2147 97 46 153 247 3145 2589 Explosions 3218 | . 105 . . . . . . 210 234 1389 234 . 111 . 208 556 . . . . 171 . Melee 670 | . . . . . . . . . . . 434 236 . . . . . . . . . . Ramming 53 | . . . . . . . . . . . . . . . . 53 . . . . . . Kinetic 13789 | 10 355 35 . 137 1269 841 439 135 675 673 1533 209 796 . . 2176 . . . 219 4028 259 Thermal 9449 | . . 11 . 23 . . . . . 98 1399 . 552 . 20 2114 . . 91 . 2552 2589 Explosive 2400 | . 105 . . . . . . 210 234 1291 . . . . 208 352 . . . . . . Electromagnetic 2920 | . . . . . . 50 216 239 134 475 65 99 204 . . 135 97 46 62 247 851 . Impact . | . . . . . . . . . . . . . . . . . . . . . . . Slashing 670 | . . . . . . . . . . . 434 236 . . . . . . . . . . Piercing . | . . . . . . . . . . . . . . . . . . . . . . . Highest Corruption 8 | . . . . . . . . . 4 4 7 7 8 8 8 2 2 2 2 2 2 2 Average Corruption 3 | . . . . . . . . . 3 4 4 7 7 8 8 1 2 2 2 2 2 2 Corruption Purged . | . . . . . . . . . . . . . . . . . . . . . . . Effects 356 | . . . . . . . . . 5 31 77 19 80 5 18 13 7 6 7 8 46 34 Message Errors 78 | . . . . . . . . . 1 10 17 3 11 1 6 2 3 . . . 12 12 Matter Fused 50 | . . . . . . . . . 3 7 14 5 14 1 6 . . . . . . . Heat Flow Errors 58 | . . . . . . . . . 1 1 13 1 11 3 2 2 1 2 3 4 9 5 Energy Discharges 40 | . . . . . . . . . . 2 6 4 7 . 1 . 1 3 1 1 7 7 Parts Rejected 2 | . . . . . . . . . . 1 . 1 . . . . . . . . . . Data Loss (minor) 40 | . . . . . . . . . . 3 11 . 8 . 2 4 2 . 2 1 4 3 Data Loss (major) 4 | . . . . . . . . . . . . . 4 . . . . . . . . . Misfires 9 | . . . . . . . . . . . 3 1 4 . 1 . . . . . . . Targeting Errors 61 | . . . . . . . . . . 7 11 2 18 . . 4 . 1 1 2 8 7 Weapon Failures 14 | . . . . . . . . . . . 2 2 3 . . 1 . . . . 6 . Overload Shots 13 | . . . . . . . . . . . 13 . . . . . . . . . . . Overflow Damage 682 | . 14 . . . . . . 37 . 34 221 32 . . 1 163 . . 29 15 25 111 Projectiles 226 | . . . . . . . . . . 6 4 . . . . 40 . . 29 15 21 111 Explosions 343 | . 14 . . . . . . 37 . 28 146 . . . 1 113 . . . . 4 . Melee 113 | . . . . . . . . . . . 71 32 . . . 10 . . . . . . Knockbacks 13 | . . . . . . . . . . . 4 1 . . . 8 . . . . . . Impact . | . . . . . . . . . . . . . . . . . . . . . . . Kinetic 11 | . . . . . . . . . . . 3 1 . . . 7 . . . . . . Secondary 2 | . . . . . . . . . . . 1 . . . . 1 . . . . . . Self-Inflicted Damage 735 | . 87 . . . . . . 58 20 120 232 . . . . 192 . . . . 26 . Shots 15 | . 1 . . . . . . 2 1 5 3 . . . . 2 . . . . 1 . Rammed 3 | . . . . . . . . . . . . . . . . 3 . . . . . . Targets Rammed 4 | . . . . . . . . . . . . . . . . 4 . . . . . . Kicked . | . . . . . . . . . . . . . . . . . . . . . . . Crushed 1 | . . . . . . . . . . . . . . . . 1 . . . . . . Highest Temperature 572 | . 15 . . . 8 63 108 339 303 334 417 194 506 277 110 572 221 260 360 374 360 330 Average Temperature 121 | . 4 . . . 4 13 27 183 97 107 117 72 143 118 44 162 71 80 117 155 113 119 Received Heat Transfer 3249 | . 126 . . 12 90 270 144 189 72 318 633 60 198 . . 468 . . . 198 63 408 Effects 66 | . . . . . . . . 1 . . 8 . 15 2 . 20 1 . 3 3 10 3 Shutdowns 8 | . . . . . . . . 1 . . 1 . 3 . . 3 . . . . . . Energy Bleed 10 | . . . . . . . . . . . 1 . 2 . . 4 1 . 1 . 1 . Interference 28 | . . . . . . . . . . . . . 5 2 . 5 . . 1 3 9 3 Matter Decay 6 | . . . . . . . . . . . . . 2 . . 3 . . 1 . . . Short Circuit 5 | . . . . . . . . . . . 2 . 1 . . 2 . . . . . . Damage (minor) 4 | . . . . . . . . . . . 1 . 1 . . 2 . . . . . . Damage (major) 3 | . . . . . . . . . . . 3 . . . . . . . . . . . Damage (core) 2 | . . . . . . . . . . . . . 1 . . 1 . . . . . . Siege Activations 25 | . . . . . . . . . . . . . . . . . . . . . 18 7 Total Turns 1002 | . . . . . . . . . . . . . . . . . . . . . 774 228 Longest Duration 163 | . . . . . . . . . . . . . . . . . . . . . 163 96 Robots Corrupted 1 | . . . . . . . . . . . . . . . . . 1 . . . . . Combat Hostiles 1 | . . . . . . . . . . . . . . . . . 1 . . . . . Parts Fried 11 | . . . . . . . . 1 . 1 . . 1 . . 1 . . 2 2 3 . Impact Corruptions 1 | . . . . . . . . . . . . . . . . 1 . . . . . . Robots Melted . | . . . . . . . . . . . . . . . . . . . . . . . Combat Hostiles . | . . . . . . . . . . . . . . . . . . . . . . . Parts Melted 5 | . . . . 1 . . . . . . . . . . . 1 . . 1 . 2 . Heat Transferred 13172 | . . 25 . 50 . . . . . 100 1549 . 1149 . 37 2720 . . 137 . 3483 3922 Parts Sabotaged . | . . . . . . . . . . . . . . . . . . . . . . . Parts Stolen . | . . . . . . . . . . . . . . . . . . . . . . . Parts Stripped . | . . . . . . . . . . . . . . . . . . . . . . . Power Chain Reactions 5 | . . . . . . . . . . 1 . . 1 . . . . . . . 3 . Missiles Intercepted . | . . . . . . . . . . . . . . . . . . . . . . . Alert | -11 -10 -10 -10 -9 -8 -8 -8 -8 -7 -7 -7 -7 -7 -7 -6 -6 -6 -6 -6 -6 -6 -6 ------- Run | Scr Mat Min Exi Min Mat Gar Mat Gar Fac Gar Fac Low Low Dat Pro Fac Was Fac Low Low Zio Dee Peak Influence 932 | . 338 111 . 81 252 398 417 326 182 932 569 . . . . 644 204 25 . . . . Initial 489 | . . 11 . . . 163 193 150 170 80 489 . . . . 40 204 2 . . . . Average 194 | . 146 47 . 46 70 261 281 215 69 554 247 . . . . 190 138 15 . . . . Maximum Alert Level 3 | . 1 . . . 1 1 2 1 . 3 2 . . . . 2 1 . . . . . Low Security (%) 64 | 100 68 100 . 100 95 47 6 36 100 14 54 . . . . 70 32 100 . . . . Level 1 21 | . 31 . . . 4 52 85 63 . 8 28 . . . . 13 67 . . . . . Level 2 10 | . . . . . . . 8 . . 39 17 . . . . 16 . . . . . . Level 3 3 | . . . . . . . . . . 37 . . . . . . . . . . . . Level 4 . | . . . . . . . . . . . . . . . . . . . . . . . Level 5 . | . . . . . . . . . . . . . . . . . . . . . . . High Security . | . . . . . . . . . . . . . . . . . . . . . . . Max Security . | . . . . . . . . . . . . . . . . . . . . . . . Squads Dispatched 26 | . 3 . . . 3 . 1 . 5 . 4 . 1 . . 8 . 1 . . . . Investigation 4 | . 2 . . . 1 . . . . . . . . . . . . 1 . . . . Extermination 7 | . . . . . . . . . 1 . 3 . . . . 3 . . . . . . Reinforcement 10 | . 1 . . . 1 . 1 . 1 . 1 . . . . 5 . . . . . . Assault 1 | . . . . . . . . . . . . . 1 . . . . . . . . . Garrison 4 | . . . . . 1 . . . 3 . . . . . . . . . . . . . Intercept . | . . . . . . . . . . . . . . . . . . . . . . . Construction Impeded 1 | . . . . . . . . . . . . . . . . 1 . . . . . . Haulers Reinforced 3 | . . . . . . . . . . . . . . . . 3 . . . . . . Stealth | -11 -10 -10 -10 -9 -8 -8 -8 -8 -7 -7 -7 -7 -7 -7 -6 -6 -6 -6 -6 -6 -6 -6 --------- Run | Scr Mat Min Exi Min Mat Gar Mat Gar Fac Gar Fac Low Low Dat Pro Fac Was Fac Low Low Zio Dee Distress Signals 9 | . 1 . . . 2 . . . . . 1 . . . . 5 . . . . . . Communications Jammed . | . . . . . . . . . . . . . . . . . . . . . . . Distress Signals . | . . . . . . . . . . . . . . . . . . . . . . . Times Spotted 327 | . 17 4 . 6 24 10 11 6 13 37 34 11 22 . 4 39 . 1 . 3 78 7 Peak Tracking Total 7 | . 3 3 . 3 6 4 3 3 4 7 5 7 5 . 3 3 . 1 . 3 3 3 Tactical Retreats 32 | . 5 1 . . . 2 1 . . 9 2 . 2 . 1 2 . . . . 6 1 Traps | -11 -10 -10 -10 -9 -8 -8 -8 -8 -7 -7 -7 -7 -7 -7 -6 -6 -6 -6 -6 -6 -6 -6 ------- Run | Scr Mat Min Exi Min Mat Gar Mat Gar Fac Gar Fac Low Low Dat Pro Fac Was Fac Low Low Zio Dee Traps Triggered 22 | . 1 . . . 1 . 1 2 . 11 4 . . . . 2 . . . . . . Indirectly . | . . . . . . . . . . . . . . . . . . . . . . . Trap Hack Attempts . | . . . . . . . . . . . . . . . . . . . . . . . Triggered . | . . . . . . . . . . . . . . . . . . . . . . . Disarmed . | . . . . . . . . . . . . . . . . . . . . . . . Reprogrammed . | . . . . . . . . . . . . . . . . . . . . . . . Reused . | . . . . . . . . . . . . . . . . . . . . . . . Traps Extracted . | . . . . . . . . . . . . . . . . . . . . . . . Installed . | . . . . . . . . . . . . . . . . . . . . . . . Triggered 3 | . . . . . . . . . . . . 1 . . 2 . . . . . . . Machines | -11 -10 -10 -10 -9 -8 -8 -8 -8 -7 -7 -7 -7 -7 -7 -6 -6 -6 -6 -6 -6 -6 -6 ---------- Run | Scr Mat Min Exi Min Mat Gar Mat Gar Fac Gar Fac Low Low Dat Pro Fac Was Fac Low Low Zio Dee Machines Disabled 31 | . 2 2 . . . . . 1 1 1 8 1 . . . 8 . . . 1 2 4 Max in Single Turn 5 | . 2 . . . . . . 1 1 1 5 1 . . . 4 . . . 1 1 1 Garrison Access 2 | . . . . . . . . . . . 1 . . . . . . 1 . . . . Garrison Relay 2 | . . . . . . . . 1 . 1 . . . . . . . . . . . . Machines Sabotaged . | . . . . . . . . . . . . . . . . . . . . . . . Garrisons Compromised . | . . . . . . . . . . . . . . . . . . . . . . . Overloaded Fab Kills . | . . . . . . . . . . . . . . . . . . . . . . . Fab Network Shutdowns . | . . . . . . . . . . . . . . . . . . . . . . . Hacking | -11 -10 -10 -10 -9 -8 -8 -8 -8 -7 -7 -7 -7 -7 -7 -6 -6 -6 -6 -6 -6 -6 -6 --------- Run | Scr Mat Min Exi Min Mat Gar Mat Gar Fac Gar Fac Low Low Dat Pro Fac Was Fac Low Low Zio Dee Machines Accessed 39 | . 6 . . 1 3 . 3 . 5 . 5 . 1 4 . 6 . 3 1 . 1 . Terminals 22 | . 6 . . 1 2 . 1 . 3 . 4 . . . . 4 . 1 . . . . Fabricators 3 | . . . . . . . . . 1 . . . . . . 2 . . . . . . Repair Stations 1 | . . . . . . . . . . . . . . . . . . 1 . . . . Recycling Units . | . . . . . . . . . . . . . . . . . . . . . . . Scanalyzers 1 | . . . . . . . 1 . . . . . . . . . . . . . . . Garrison Access 5 | . . . . . 1 . 1 . 1 . 1 . . . . . . 1 . . . . Total Hacks 113 | . 20 . . 1 7 . 4 . 16 . 10 . 1 26 . 17 . 5 1 . 5 . Successful 71 | . 9 . . 1 4 . 3 . 8 . 3 . 1 26 . 6 . 4 1 . 5 . Failed 42 | . 11 . . . 3 . 1 . 8 . 7 . . . . 11 . 1 . . . . Catastrophic 8 | . 1 . . . 1 . 1 . 2 . 3 . . . . . . . . . . . Database Lockouts . | . . . . . . . . . . . . . . . . . . . . . . . Manual 38 | . 14 . . 1 4 . 1 . 5 . 4 . . . . 4 . 1 . . 4 . Terminals 55 | . 20 . . 1 5 . 1 . 10 . 9 . . . . 8 . 1 . . . . Fabricators 14 | . . . . . . . . . 5 . . . . . . 9 . . . . . . Repair Stations 3 | . . . . . . . . . . . . . . . . . . 3 . . . . Recycling Units . | . . . . . . . . . . . . . . . . . . . . . . . Scanalyzers 2 | . . . . . . . 2 . . . . . . . . . . . . . . . Garrison Access 6 | . . . . . 2 . 1 . 1 . 1 . . . . . . 1 . . . . Terminal Hacks 52 | . 6 . . 1 3 . . . 3 . 2 . 1 26 . 3 . 1 1 . 5 . Record 11 | . . . . . . . . . . . . . . 11 . . . . . . . . Part Schematic 10 | . . . . . . . . . . . . . . 5 . . . . . . 5 . Robot Schematic 7 | . . . . . . . . . . . . . . 7 . . . . . . . . Robot Analysis 1 | . . . . . 1 . . . . . . . . . . . . . . . . . Prototype ID Bank 4 | . 1 . . . . . . . . . . . . 3 . . . . . . . . Open Door 2 | . . . . . . . . . . . . . 1 . . . . . 1 . . . Branch Access Points 3 | . 1 . . . . . . . . . 1 . . . . . . 1 . . . . Terminal Index 2 | . . . . . . . . . 1 . . . . . . 1 . . . . . . Fabricator Index 1 | . . . . . . . . . . . . . . . . 1 . . . . . . Alert Level 1 | . . . . . 1 . . . . . . . . . . . . . . . . . Unreport Threat 3 | . 1 . . 1 . . . . . . 1 . . . . . . . . . . . Transport Status 1 | . 1 . . . . . . . . . . . . . . . . . . . . . Hauler Manifests 1 | . 1 . . . . . . . . . . . . . . . . . . . . . Registered Components 1 | . . . . . . . . . 1 . . . . . . . . . . . . . Zone Layout 4 | . 1 . . . 1 . . . 1 . . . . . . 1 . . . . . . Fabricator Hacks 5 | . . . . . . . . . 2 . . . . . . 3 . . . . . . Load Schematic 2 | . . . . . . . . . 1 . . . . . . 1 . . . . . . Build 3 | . . . . . . . . . 1 . . . . . . 2 . . . . . . Repair Station Hacks 2 | . . . . . . . . . . . . . . . . . . 2 . . . . Scan Component 1 | . . . . . . . . . . . . . . . . . . 1 . . . . Repair 1 | . . . . . . . . . . . . . . . . . . 1 . . . . Recycling Unit Hacks . | . . . . . . . . . . . . . . . . . . . . . . . Scanalyzer 2 | . . . . . . . 2 . . . . . . . . . . . . . . . Insert Component 1 | . . . . . . . 1 . . . . . . . . . . . . . . . Analyze 1 | . . . . . . . 1 . . . . . . . . . . . . . . . Garrison Access Hacks 5 | . . . . . 1 . 1 . 1 . 1 . . . . . . 1 . . . . Unlock Access 3 | . . . . . 1 . 1 . 1 . . . . . . . . . . . . . Seal Access 2 | . . . . . . . . . . . 1 . . . . . . 1 . . . . Unauthorized Hacks 5 | . 3 . . . . . . . 2 . . . . . . . . . . . . . Terminals 5 | . 3 . . . . . . . 2 . . . . . . . . . . . . . Track 3 | . 2 . . . . . . . 1 . . . . . . . . . . . . . Botnet 2 | . 1 . . . . . . . 1 . . . . . . . . . . . . . Fabricators . | . . . . . . . . . . . . . . . . . . . . . . . Repair Stations . | . . . . . . . . . . . . . . . . . . . . . . . Recycling Units . | . . . . . . . . . . . . . . . . . . . . . . . Scanalyzers . | . . . . . . . . . . . . . . . . . . . . . . . Garrison Access . | . . . . . . . . . . . . . . . . . . . . . . . Data Cores Recovered . | . . . . . . . . . . . . . . . . . . . . . . . Used . | . . . . . . . . . . . . . . . . . . . . . . . Hacking Detections 21 | . 4 . . . 1 . 1 . 5 . 3 . . . . 6 . 1 . . . . Full Trace Events 2 | . 1 . . . . . . . . . . . . . . . . 1 . . . . Feedback Events . | . . . . . . . . . . . . . . . . . . . . . . . Feedback Blocked . | . . . . . . . . . . . . . . . . . . . . . . . Robot Schematics Acquired 7 | . . . . . . . . . . . . . . 7 . . . . . . . . Robots Built . | . . . . . . . . . . . . . . . . . . . . . . . Matter . | . . . . . . . . . . . . . . . . . . . . . . . Time . | . . . . . . . . . . . . . . . . . . . . . . . Total Robot Build Rating . | . . . . . . . . . . . . . . . . . . . . . . . Part Schematics Acquired 11 | . . . . . . . 1 . . . . . . 5 . . . . . . 5 . Parts Built 4 | . . . . . . . . . 1 . . . . . . 3 . . . . . . Matter 460 | . . . . . . . . . 102 . . . . . . 358 . . . . . . Time 114 | . . . . . . . . . 25 . . . . . . 89 . . . . . . Total Part Build Rating 18 | . . . . . . . . . 1 . . . . . . 17 . . . . . . Parts Repaired 1 | . . . . . . . . . . . . . . . . . . 1 . . . . Time 34 | . . . . . . . . . . . . . . . . . . 34 . . . . Parts Recycled . | . . . . . . . . . . . . . . . . . . . . . . . Recycled Matter . | . . . . . . . . . . . . . . . . . . . . . . . Retrieved Matter . | . . . . . . . . . . . . . . . . . . . . . . . Retrieved Components . | . . . . . . . . . . . . . . . . . . . . . . . Parts Scanalyzed 1 | . . . . . . . 1 . . . . . . . . . . . . . . . Part Schematics Acquired 1 | . . . . . . . 1 . . . . . . . . . . . . . . . Parts Damaged . | . . . . . . . . . . . . . . . . . . . . . . . Bothacking | -11 -10 -10 -10 -9 -8 -8 -8 -8 -7 -7 -7 -7 -7 -7 -6 -6 -6 -6 -6 -6 -6 -6 ------------ Run | Scr Mat Min Exi Min Mat Gar Mat Gar Fac Gar Fac Low Low Dat Pro Fac Was Fac Low Low Zio Dee Used RIF Installer 3 | . . . . . . 1 . 1 . 1 . . . . . . . . . . . . Patrol Navigation 1 | . . . . . . . . 1 . . . . . . . . . . . . . . Alert ID Control 1 | . . . . . . . . . . 1 . . . . . . . . . . . . Robots Hacked 10 | . . . . . . . . . 2 . 3 . 2 . . 2 . . . . 1 . Non-combat 7 | . . . . . . . . . 2 . 1 . 2 . . 2 . . . . . . Combat 3 | . . . . . . . . . . . 2 . . . . . . . . . 1 . Robot Hacks Applied 13 | . . . . . . . . . 3 . 5 . 2 . . 2 . . . . 1 . parse_system 2 | . . . . . . . . . . . . . 1 . . . . . . . 1 . no_distress 1 | . . . . . . . . . . . . . 1 . . . . . . . . . find_chute 3 | . . . . . . . . . 1 . . . . . . 2 . . . . . . purge_threat 4 | . . . . . . . . . 2 . 2 . . . . . . . . . . . block_reporting 1 | . . . . . . . . . . . 1 . . . . . . . . . . . disable_weapons 1 | . . . . . . . . . . . 1 . . . . . . . . . . . formatsys_high 1 | . . . . . . . . . . . 1 . . . . . . . . . . . Relay Couplers Released 14 | . . . . . . . . 5 4 5 . . . . . . . . . . . . Machine Destruction 10 | . . . . . . . . 5 . 5 . . . . . . . . . . . . Programmers 4 | . . . . . . . . . 4 . . . . . . . . . . . . . Attached 4 | . . . . . . . . . 1 . 2 . . . . . 1 . . . . . Robots Rewired 7 | . . . . . . . . . . . . 5 2 . . . . . . . . . Allies Hacked . | . . . . . . . . . . . . . . . . . . . . . . . Hacks Repelled . | . . . . . . . . . . . . . . . . . . . . . . . Allies | -11 -10 -10 -10 -9 -8 -8 -8 -8 -7 -7 -7 -7 -7 -7 -6 -6 -6 -6 -6 -6 -6 -6 -------- Run | Scr Mat Min Exi Min Mat Gar Mat Gar Fac Gar Fac Low Low Dat Pro Fac Was Fac Low Low Zio Dee Total Allies 13 | . . 3 . . . . . . . . 1 5 3 . 1 . . . . . . . Largest Group 4 | . . 3 3 3 1 . . . . . 1 4 4 . 1 1 . . . . . . Highest-Rated Group 180 | . . 40 40 40 16 . . . . . 29 114 180 . 94 94 . . . . . . Highest-Rated Ally 180 | . . 16 16 16 16 . . . . . 29 32 180 . 94 94 . . . . . . Total Orders . | . . . . . . . . . . . . . . . . . . . . . . . Ally Attacks 114 | . . 10 . 16 6 . . . . . 1 37 29 . 8 7 . . . . . . Total Damage 2386 | . . 60 . 193 61 . . . . . 19 653 985 . 184 231 . . . . . . Kills 25 | . . 3 . 2 . . . . . . . 7 10 . 2 1 . . . . . . Allies Corrupted . | . . . . . . . . . . . . . . . . . . . . . . . Allies Melted . | . . . . . . . . . . . . . . . . . . . . . . . Intel | -11 -10 -10 -10 -9 -8 -8 -8 -8 -7 -7 -7 -7 -7 -7 -6 -6 -6 -6 -6 -6 -6 -6 ------- Run | Scr Mat Min Exi Min Mat Gar Mat Gar Fac Gar Fac Low Low Dat Pro Fac Was Fac Low Low Zio Dee Robot Analysis Total 1 | . . . . . 1 . . . . . . . . . . . . . . . . . Derelict Logs Recovered 9 | . . 1 . 1 . . . . . . . . 2 . 1 . . . 1 1 2 . Drone Launches . | . . . . . . . . . . . . . . . . . . . . . . . Drone Recoveries . | . . . . . . . . . . . . . . . . . . . . . . . Exploration | -11 -10 -10 -10 -9 -8 -8 -8 -8 -7 -7 -7 -7 -7 -7 -6 -6 -6 -6 -6 -6 -6 -6 ------------- Run | Scr Mat Min Exi Min Mat Gar Mat Gar Fac Gar Fac Low Low Dat Pro Fac Was Fac Low Low Zio Dee Turns Passed 24193 | 60 469 1081 623 672 585 389 495 451 1064 1179 2578 492 1656 139 559 2252 592 582 1038 798 3716 2723 Spaces Moved 11730 | 55 328 585 346 352 253 194 234 215 506 541 1336 251 846 83 348 1069 320 324 490 427 1283 1344 Core 12 | 9 . . . . . . . . . . 2 . . . . . . . . . . 1 Treads 8449 | . 57 585 346 352 253 194 234 215 506 541 52 . . . . 927 320 324 490 427 1283 1343 Legs 2952 | . . . . . . . . . . . 1282 251 846 83 348 142 . . . . . . Wheels 317 | 46 271 . . . . . . . . . . . . . . . . . . . . . Hover . | . . . . . . . . . . . . . . . . . . . . . . . Flight . | . . . . . . . . . . . . . . . . . . . . . . . Fastest Speed 50 | 50 80 180 180 180 160 160 160 180 180 180 150 150 120 150 122 152 155 155 155 155 158 155 Average Speed 161 | 77 108 180 180 180 160 160 166 180 180 180 158 161 148 150 150 160 174 155 155 156 158 164 Slowest Speed 1650 | 100 180 180 180 180 180 160 180 180 180 200 1650 215 180 150 152 300 176 155 155 172 178 550 Overloaded Moves . | . . . . . . . . . . . . . . . . . . . . . . . Propulsion Burnouts . | . . . . . . . . . . . . . . . . . . . . . . . Robots Hopped . | . . . . . . . . . . . . . . . . . . . . . . . Cave-ins Triggered . | . . . . . . . . . . . . . . . . . . . . . . . Exploration Rate (%) 51 | 4 55 98 78 76 23 41 23 45 11 62 35 42 63 70 52 24 95 9 62 51 66 89 Regions Visited 22 Branch Regions 11 Pre-discovered Areas 3 | . . 1 . . . . . . . . . . 1 1 . . . . . . . . Known Exits Taken 13 | . 1 . . . 1 . 1 . 1 . 1 1 1 1 1 . . 1 1 1 1 . Unknown Exits Taken 4 | 1 . 1 1 1 . . . . . . . . . . . . . . . . . . Scrap Searched 16 | . . 1 . 1 . . . . . . . 1 3 . 5 . . . 2 1 2 . Spaces Dug 56 | . . . . . . . . . . . 5 . . . . 10 . 8 23 . . 10 Terrain Destroyed 317 | . 14 . . . . . . 1 5 67 48 1 2 . 21 88 . 11 35 1 7 16 Melee 5 | . . . . . . . . . . . 5 . . . . . . . . . . . Projectile 105 | . . . . . . . . . . 4 4 1 . . . 30 . 11 35 1 4 15 AOE 207 | . 14 . . . . . . 1 5 63 39 . 2 . 21 58 . . . . 3 1 Terrain Rammed . | . . . . . . . . . . . . . . . . . . . . . . . Walls Destroyed . | . . . . . . . . . . . . . . . . . . . . . . . Machines Disabled . | . . . . . . . . . . . . . . . . . . . . . . . Actions | -11 -10 -10 -10 -9 -8 -8 -8 -8 -7 -7 -7 -7 -7 -7 -6 -6 -6 -6 -6 -6 -6 -6 --------- Run | Scr Mat Min Exi Min Mat Gar Mat Gar Fac Gar Fac Low Low Dat Pro Fac Was Fac Low Low Zio Dee Total 15442 | 67 385 604 347 370 364 230 297 250 613 660 1606 307 1152 98 379 1409 354 393 730 532 2590 1705 Wait 2169 | . . 12 . . 36 14 23 6 56 21 69 18 216 16 1 116 . 59 201 79 1040 186 Move 11710 | 54 327 584 345 351 253 192 234 214 506 539 1335 250 845 82 347 1069 319 323 489 426 1282 1344 Hop . | . . . . . . . . . . . . . . . . . . . . . . . Pick Up 169 | 6 13 2 2 4 12 . 8 3 8 11 19 1 16 . 5 21 9 1 1 4 16 7 Fast Attach 110 | 6 3 . . . 5 . 1 1 2 3 21 5 7 . 7 27 5 . . 1 11 5 Attach 60 | . 3 . . . 3 1 4 1 3 12 7 . 1 . . 9 . . . 3 5 8 Detach 10 | . . . . . 2 . . . . . 2 . . . . 1 . . . . 1 4 Swap 101 | . 2 . . 3 6 2 1 4 8 5 14 7 5 . 4 17 2 . . 2 13 6 Drop 180 | . 8 . . 2 12 . 4 2 8 3 23 4 8 . 12 41 15 . 2 5 21 10 Fire 881 | 1 29 6 . 10 35 21 22 15 20 43 101 18 54 . 3 104 4 10 37 12 201 135 Melee 17 | . . . . . . . . . 2 1 10 4 . . . . . . . . . . Ram . | . . . . . . . . . . . . . . . . . . . . . . . Kick . | . . . . . . . . . . . . . . . . . . . . . . . Crush 4 | . . . . . . . . . . . . . . . . 4 . . . . . . Escape Stasis 31 | . . . . . . . . 4 . 22 5 . . . . . . . . . . . Rewire . | . . . . . . . . . . . . . . . . . . . . . . . Trap . | . . . . . . . . . . . . . . . . . . . . . . . Miscellaneous . | . . . . . . . . . . . . . . . . . . . . . . . Route ------- -11/Scrapyard -10/Materials (discovered 3 exits: [*Mat] / *Min x2) -10/Mines (discovered 3 exits: [*Mat x2] / [*Exi]) -10/Exiles -9/Mines -8/Materials (discovered 2 exits: [*Sto] / Gar) -8/Garrison -8/Materials -8/Garrison -7/Factory (discovered 2 exits: Low / Gar) -7/Garrison (discovered 2 exits: *Fac x2) -7/Factory (discovered 4 exits: *Fac x2 / *Low x2) -7/Lower Caves -7/Lower Caves (discovered 3 exits: *Fac x2 / *Dat) -7/Data Miner -6/Proximity Caves -6/Factory -6/Waste -6/Factory (discovered 4 exits: *Low x2 / Ext x2) -6/Lower Caves -6/Lower Caves -6/Zion (discovered 2 exits: *Dee / [*Pro]) -6/Deep Caves History --------- Turn | Location | Event 2 | -11/Scrapyard | Met Revision 17 6 | -11/Scrapyard | Discovered new exit (range 16) 61 | -11/Scrapyard | Entered Materials 155 | -10/Materials | Discovered new exit (range 16) 240 | -10/Materials | Identified exit to Mines 316 | -10/Materials | Build established: Mutant 530 | -10/Materials | Entered Mines 651 | -10/Mines | Build established: Hauler-Mutant 955 | -10/Mines | Discovered new exit (range 4) 1099 | -10/Mines | Assisted by bots powering up and referring to "LRC-V3" 1153 | -10/Mines | Discovered new exit (range 9) 1600 | -10/Mines | Deemed a non-threat by the Exiles lab entrance 1602 | -10/Mines | Discovered new exit (range 5) 1611 | -10/Mines | Entered Exiles 1611 | -10/Exiles | Accompanied by 3 allies 1655 | -10/Exiles | Met 8R-AWN 1687 | -10/Exiles | Met EX-HEX 1759 | -10/Exiles | Met EX-DEC 1942 | -10/Exiles | Visited The Gauntlet 2213 | -10/Exiles | Discovered new exit (range 14) 2234 | -10/Exiles | Entered Mines 2234 | -9/Mines | Accompanied by 3 allies 2680 | -9/Mines | Received a Rocket Launcher from a helpful Derelict 2882 | -9/Mines | Discovered new exit (range 11) 2906 | -9/Mines | Entered Materials 2906 | -8/Materials | Accompanied by 1 ally 2906 | -8/Materials | Evolved 4 slots: Propulsion x2, Utility x2 3399 | -8/Materials | Garrison activated, responded to threat 3476 | -8/Materials | Discovered new exit (range 15) 3491 | -8/Materials | Identified exit to Garrison 3491 | -8/Materials | Entered Garrison 3499 | -8/Garrison | Installed Relay Interface Framework 3724 | -8/Garrison | Triggered checkpoint 3857 | -8/Garrison | Discovered new exit (range 13) 3880 | -8/Garrison | Entered Materials 4048 | -8/Materials | Lost 3 parts (1p1u1w) 4375 | -8/Materials | Identified exit to Garrison 4375 | -8/Materials | Entered Garrison 4474 | -8/Garrison | Triggered checkpoint 4644 | -8/Garrison | Discovered new exit (range 10) 4671 | -8/Garrison | Expanded RIF knowledge: Watcher Feeds 4722 | -8/Garrison | Triggered checkpoint 4754 | -8/Garrison | Garrison Relay disabled 4826 | -8/Garrison | Entered Factory 4826 | -7/Factory | Evolved 2 slots: Weapon x2 4827 | -7/Factory | Identified exit to Lower Caves 5029 | -7/Factory | Fabricated Humpback (x1) 5454 | -7/Factory | Garrison activated, responded to threat 5890 | -7/Factory | Identified exit to Garrison 5890 | -7/Factory | Entered Garrison 6166 | -7/Garrison | Lost 3 parts (3w) 6258 | -7/Garrison | Lost 3 parts (2n1u) 6272 | -7/Garrison | Discovered new exit (range 13) 6424 | -7/Garrison | Build established: Bothacker-Mutant 6523 | -7/Garrison | Triggered checkpoint 6584 | -7/Garrison | Lost 3 parts (3w) 6796 | -7/Garrison | Discovered new exit (range 12) 6827 | -7/Garrison | Expanded RIF knowledge: Alert ID Control 6904 | -7/Garrison | Triggered checkpoint 6957 | -7/Garrison | Garrison Relay disabled 7069 | -7/Garrison | Entered Factory 7238 | -7/Factory | Lost 6 parts (4n2w) 7923 | -7/Factory | Lost 3 parts (3n) 8068 | -7/Factory | Lost 5 parts (1p1n1u2w) 8511 | -7/Factory | Core integrity fell below 50% 8653 | -7/Factory | Discovered new exit (range 5) 8683 | -7/Factory | Identified exit to Factory 8977 | -7/Factory | Build established: Scavenger-Skirmisher 9032 | -7/Factory | Discovered exit to Factory (range 13) 9615 | -7/Factory | Build established: Hauler-Mutant 9647 | -7/Factory | Entered Lower Caves 9838 | -7/Lower Caves | Attacked by a delusional Derelict stockpiling Unaware 9989 | -7/Lower Caves | Attracted the attention of an 0b10 outpost 10122 | -7/Lower Caves | Discovered new exit (range 8) 10130 | -7/Lower Caves | Identified exit to Lower Caves 10139 | -7/Lower Caves | Entered another Lower Caves area 10139 | -7/Lower Caves | Accompanied by 4 allies 10158 | -7/Lower Caves | Attracted the attention of an 0b10 outpost 10491 | -7/Lower Caves | Discovered exit to Factory (range 5) 10619 | -7/Lower Caves | Build established: Scavenger-Mutant 11224 | -7/Lower Caves | Core integrity fell below 20% 11247 | -7/Lower Caves | Lost 14 parts (2n10u2w) 11286 | -7/Lower Caves | 7V-RTL showed up to help 11288 | -7/Lower Caves | 7V-RTL revealed a hidden path 11519 | -7/Lower Caves | Build established: Scavenger-Tank 11521 | -7/Lower Caves | Encountered a Warlord checkpoint 11722 | -7/Lower Caves | Discovered new exit (range 14) 11740 | -7/Lower Caves | Identified exit to Data Miner 11795 | -7/Lower Caves | Entered Data Miner 11795 | -7/Data Miner | Discovered new exit (range 6) 11824 | -7/Data Miner | Met Data Miner 11870 | -7/Data Miner | Learned location of Section 7 (-2) 11870 | -7/Data Miner | Acquired the access code to Warlord's prototype stash 11897 | -7/Data Miner | Received God Mode back door access code from Data Miner 11933 | -7/Data Miner | Identified exit to Proximity Caves 11934 | -7/Data Miner | Entered Proximity Caves 12112 | -6/Proximity Caves | Escorted by Enhanced Grunt 12493 | -6/Proximity Caves | Entered Factory 12493 | -6/Factory | Accompanied by 1 ally 12493 | -6/Factory | Evolved 2 slots: Utility x2 13179 | -6/Factory | Build established: Scavenger-Mutant 13274 | -6/Factory | Discovered new exit (range 15) 13299 | -6/Factory | Identified exit to Extension 13887 | -6/Factory | Fabricated Biometal Medium Treads? 14237 | -6/Factory | Found Launcher Loader 14505 | -6/Factory | Fabricated Humpback (x1) 14745 | -6/Factory | Sucked down chute 14745 | -6/Factory | Entered Waste 14745 | -6/Waste | The area was eerily silent 14839 | -6/Waste | Found Damper Plating 14902 | -6/Waste | Build established: Hauler-Mutant 15056 | -6/Waste | Discovered new exit (range 15) 15272 | -6/Waste | Found Damper Plating 15335 | -6/Waste | Identified exit to Factory 15337 | -6/Waste | Entered Factory 15378 | -6/Factory | Identified exit to Lower Caves 15678 | -6/Factory | Incoming investigation squad redirected 15690 | -6/Factory | Repaired Adv. Weapon Cycler 15919 | -6/Factory | Entered Lower Caves 16057 | -6/Lower Caves | Build established: Hauler-Skirmisher 16069 | -6/Lower Caves | Learned Factory garrison access intel 16083 | -6/Lower Caves | Spotted B-75 Beast 16260 | -6/Lower Caves | Found Prototype Device 16448 | -6/Lower Caves | Build established: Hauler-Mutant 16937 | -6/Lower Caves | Discovered new exit (range 13) 16955 | -6/Lower Caves | Identified exit to Lower Caves 16957 | -6/Lower Caves | Entered another Lower Caves area 17172 | -6/Lower Caves | Encountered a Warlord checkpoint 17520 | -6/Lower Caves | Learned 4 Factory zone layouts 17580 | -6/Lower Caves | Discovered new exit (range 4) 17585 | -6/Lower Caves | Identified exit to Zion 17648 | -6/Lower Caves | Build established: Scavenger-Skirmisher 17755 | -6/Lower Caves | Entered Zion 17853 | -6/Zion | Discovered new exit (range 15) 18562 | -6/Zion | RIF detected upon attempting to enter Zion 18562 | -6/Zion | Attacked by Zionites 18776 | -6/Zion | Spotted 0A-T35(B) 18824 | -6/Zion | Destroyed 0A-T35(B) 18850 | -6/Zion | Spotted 48-5V7(B) 18871 | -6/Zion | Destroyed 48-5V7(B) 19124 | -6/Zion | Destroyed Imprinter 19196 | -6/Zion | Extracted access codes from Imprinter's data core 19668 | -6/Zion | Build established: Scavenger-Mutant 20148 | -6/Zion | Learned location of 1 exit from Factory 20248 | -6/Zion | Core integrity fell below 50% 20342 | -6/Zion | Lost 3 parts (1u2w) 20944 | -6/Zion | Found Relay Coupler [Programmer] 20950 | -6/Zion | Found Relay Coupler [Programmer] 21438 | -6/Zion | Opened final containment barrier to the Deep Caves 21466 | -6/Zion | Discovered new exit (range 3) 21466 | -6/Zion | Saw the warning signs outside the Deep Caves entrance 21469 | -6/Zion | Identified exit to Deep Caves 21471 | -6/Zion | Entered Deep Caves 21562 | -6/Deep Caves | Identified Heart of Steel 21692 | -6/Deep Caves | Build established: Scavenger-Skirmisher 21995 | -6/Deep Caves | Z-Facility disabled 22281 | -6/Deep Caves | Build established: Scavenger-Mutant 22854 | -6/Deep Caves | Spotted as-99653 23205 | -6/Deep Caves | Destroyed as-99653 23858 | -6/Deep Caves | Build established: Hauler-Mutant 24157 | -6/Deep Caves | Spotted as-02384 24169 | -6/Deep Caves | Core integrity fell below 20% 24193 | -6/Deep Caves | Exposed GOLEM chamber 24194 | -6/Deep Caves | Destroyed by as-02384 with Assembled Focal Cannon Last Messages --------------- 23594_ System corrupted: Energy discharge (-175). 23759_ System corrupted: Component data lost. 23972_ KOM TEF UGHS:ZSHLISDZ:AC 24043_ Acquired 54 matter. 24077_ 3XRSKZ8 V<|OF 4XW 24158_ as-02384: "DSI9AT1D G8OHIBQ29FWG 26R186 QD12WHW8W33 TDK1 81FTS" 24160_ Hvy. Treads destroyed. 24160_ Coil Gun destroyed. 24160_ Spk. Medium Treads destroyed. 24171_ Hvy. Treads destroyed. 24178_ F-cell Engine destroyed. 24178_ Lrn. Sensor Array destroyed. 24181_ Humpback destroyed. 24184_ Acquired Arm. Treads. 24184_ Spk. Medium Treads destroyed. 24184_ Arm. Treads destroyed. 24184_ Com. Ion Cannon destroyed. 24191_ Acquired Arm. Treads. 24193_ Wall Chamber breached. 24193_ A GOLEM Unit tumbles out of the Wall Chamber. Map ----- +----------------------------------------------------+ | | | | | | | | | | | | | | | | | | | | | | | | | | | | | | | | | | | ????????""########??????????????????????? | | ????????" ??????????????????????? | | ?????????" ??????????????????????? | | ????????""" ??????????????????????# | | ????????" #####?????????????????## | | ????????" # # #?????????????????# | | ????????"" !# # #?????########????# | | ????????" |! # ####### ## ##???# | | ????????"" @ ; ## " " ##??# | | ????????" ;# ### ## #### | | ????????""" ;# #?####### ## | | ????????" G ## #??????## | | ????????" # #####?## | | ????????" #?# | | ????????# ] "##?# | | ????????"" ;##??## | | ?????????" ####????###### | | ?????????! ????????????## | | ????????"" g #####??????????# | | ?????????" #?# #??###?????# | | ????????# / ### ##?# #????# | | ????????# # ??# #???# | | ????????# / / ##??# #?## | | ????????# #### ## | | ????????# / ! # | | ????????# ** ]] ### | | ????????# * ### | | ????????# ] ] ### | | ????????# #?#### | | ????????# ] #????## | | ????????# ] ! #????## | | ?????????" #????# | | ?????????" #???## | +----------------------------------------------------+ Best States ------------- Heat Dissipation 64 Energy Generation 19 Energy Capacity 500 Matter Stores 300 Matter Capacity 300 Sight Range 16 Robot Scan Range 20 Terrain Scan Density 10 Armor Coverage 2400 Resistance: KI 30 Resistance: TH 10 Resistance: EM 90 Power Shielding 33 Evasion (%) 44 Recoil Reduction 4 Force Boost 3 Offensive Hacking 10 Relay Coupler Types 37 Relay Coupler Value 2 Item Schematics ----------------- Humpback | -8/Materials | Scanalyzed Combat Drone Bay | -7/Data Miner | Free Lgt. Regenerative Plating | -7/Data Miner | Free Exp. Cesium-ion Thruster | -7/Data Miner | Free Exp. Targeting Computer | -7/Data Miner | Free Mni. Smartbomb Launcher | -7/Data Miner | Free Beamcaster | -6/Zion | Free Riot Gun | -6/Zion | Free Battle Rifle | -6/Zion | Free Hvy. Battle Rifle | -6/Zion | Free Plasma Flamer | -6/Zion | Free Robot Schematics ------------------ S-27 Virus | -7/Data Miner | Free G-50 Soldier | -7/Data Miner | Free L-41 Fighter | -7/Data Miner | Free X-72 Disruptor | -7/Data Miner | Free H-66 Slayer | -7/Data Miner | Free P-70 Sage | -7/Data Miner | Free I-36 Angel | -7/Data Miner | Free Fabricated ------------ Humpback | x1 | -7/Factory Biometal Medium Treads | x2 | -6/Factory | Preloaded Humpback | x1 | -6/Factory Alien Tech Used ----------------- None Achievements -------------- Monster Signs Are For Wimps Turtlemind Challenges ------------ None Game ------ Seed StasisRiotPrototype Manual? 0 Play Time 04:20:15 Cumulative 73.2 hours Start 2021.05.29 @ 21:41:44 End 2021.05.30 @ 20:09:57 Sessions 4 Manual Loads 0 Difficulty Rogue Special Mode None Game No. 30 Rogue 30 Adventurer 0 Explorer 0 Win Type - Total 1 Types 1/0/0/0/0/0/0/0/0 Lore% 47 Gallery% 53 Achievement% 42 Wizard Run 0 Options --------- ASCII 0 Keyboard 0 Movement Mouse Keybinds 0 Fullscreen 1 Font 18/SmallcapsGlow Map View 76x50 Tactical HUD 1 Map Filters NONE Filters NONE Steam 1 RUN: f091cd0f-98eb-4d4d-8d1a-55f769708c9b